bitfinex-derivatives/quotes_ETHF0:USTF0_20250614
["timestamp","ask_amount","ask_price","bid_price","bid_amount"]
[1749918908011,0.80185443,2511.8,2511.7,25.61247272]
[1749918908604,0.80185443,2511.8,2511.7,0.32647272]
[1749918908819,4.00965443,2511.8,2511.7,0.32647272]
[1749918910304,9.00965443,2511.8,2511.7,0.32647272]
[1749918910511,4.00965443,2511.8,2511.7,0.32647272]
[1749918912206,5.24943892,2511.8,2511.7,0.32647272]
[1749918913415,5.24943892,2511.8,2511.7,2.72e-06]
[1749918913612,5.24943892,2511.8,2511.3,0.00597443]
[1749918913613,0.796,2511.4,2511.3,0.00597443]
[1749918913812,1.9901,2511.3,2510.7,35.3468]
[1749918914014,1.343,2511.5,2511.0,4.00391]
[1749918914219,0.6607,2511.5,2511.3,3.2078]
[1749918914416,3.2078,2511.7,2511.3,3.2078]
[1749918914417,3.2078,2511.7,2511.4,1.2763]
[1749918914719,0.79597,2511.5,2511.4,1.2763]
[1749918915024,0.80185443,2511.8,2511.4,1.2763]
[1749918915224,0.80185443,2511.8,2511.7,0.79591]
[1749918915523,0.00597443,2511.8,2511.7,0.79591]
[1749918916317,0.6582,2512.2,2511.7,32.95991]
[1749918916520,3.8482,2512.4,2511.9,3.2078]
[1749918916728,0.6404,2512.4,2512.3,0.79572]
[1749918916913,0.6404,2512.4,2512.2,0.79573]
[1749918917113,0.6404,2512.4,2512.3,2.07202]
[1749918917314,0.00597443,2512.6,2512.4,0.79567]
[1749918917517,0.00597443,2512.6,2512.5,2.13546]
[1749918918120,0.00597443,2512.6,2512.5,34.30046]
[1749918918318,0.79555,2512.9,2512.7,0.79558]
[1749918918514,0.79553,2512.9,2512.8,1.3398]
[1749918920424,0.00395494,2513.1,2512.8,1.3398]
[1749918920611,0.79553,2512.9,2512.8,1.3398]
[1749918920816,0.79553,2512.9,2512.8,26.6028]
[1749918921613,0.79553,2512.9,2512.8,1.3398]
[1749918921819,0.79556,2512.8,2512.7,32.151]
[1749918922017,0.79556,2512.8,2512.7,32.94659]
[1749918922217,0.79555,2512.9,2512.7,32.151]
[1749918922418,0.79556,2512.8,2512.7,32.151]
[1749918923326,0.79556,2512.8,2512.7,32.94659]
[1749918923919,0.79551,2513.0,2512.9,0.79552]
[1749918924122,2.03732226,2513.0,2512.9,0.79552]
[1749918924326,0.79556,2512.9,2512.6,3.21377443]
[1749918924626,0.79556,2512.9,2512.8,6.826]
[1749918924821,2.03811321,2512.9,2512.8,6.826]
[1749918925118,1.24255321,2512.9,2512.8,7.62156]
[1749918925327,1.2423624,2512.9,2512.8,7.62156]
[1749918925516,1.2423624,2512.9,2512.8,8.30746]
[1749918925818,0.00395494,2513.1,2513.0,0.7955]
[1749918926017,0.00395494,2513.1,2513.0,26.0155]
[1749918926227,1.24745299,2513.1,2512.8,0.6859]
[1749918926425,1.24745299,2513.1,2512.9,32.038]
[1749918926426,2.03900805,2513.0,2512.9,32.038]
[1749918926625,2.03900805,2513.0,2512.9,32.83353]
[1749918926819,1.24349805,2513.0,2512.9,32.83353]
[1749918927025,1.24349805,2513.0,2512.9,36.04133]
[1749918927525,1.24349805,2513.0,2512.9,36.04433]
[1749918928524,1.24349805,2513.0,2512.6,3.21377443]
[1749918928823,2.03903805,2512.9,2512.8,0.79556]
[1749918929329,1.24349805,2512.9,2512.8,0.79556]
[1749918929530,2.38046668,2513.1,2512.9,0.79552]
[1749918929724,4.41836055,2513.0,2512.9,0.79552]
[1749918929933,3.62284055,2513.0,2512.9,26.00052]
[1749918930334,4.41834055,2513.0,2512.9,25.205]
[1749918931132,4.41834055,2513.0,2512.9,26.00053]
[1749918931728,0.79557,2512.8,2512.7,0.79557]
[1749918931931,2.04189881,2512.8,2512.7,25.97059]
[1749918932127,0.79559,2512.7,2512.6,4.00937443]
[1749918932330,2.04191881,2512.7,2512.6,36.00437443]
[1749918932629,1.24632881,2512.7,2512.6,36.00439443]
[1749918933325,2.04191881,2512.7,2512.6,32.79659443]
[1749918933633,2.04191881,2512.7,2512.6,32.00097443]
[1749918934330,2.04191881,2512.7,2512.6,32.79659443]
[1749918934533,2.04191881,2512.7,2512.6,25.17297443]
[1749918935033,1.2330127,2512.7,2512.6,25.96859443]
[1749918935432,2.0286027,2512.7,2512.6,25.17297443]
[1749918935634,2.0286027,2512.7,2512.6,0.00597443]
[1749918935833,2.0286027,2512.7,2512.6,25.15497443]
[1749918936432,2.0286027,2512.7,2512.6,25.95059443]
[1749918937434,2.0286027,2512.7,2512.6,0.00597443]
[1749918938028,0.79569,2512.4,2512.3,3.2078]
[1749918938228,0.79578,2512.1,2512.0,1.2983]
[1749918938531,0.79581,2512.0,2511.9,10.0318]
[1749918938731,2.0288227,2512.0,2511.9,35.1628]
[1749918939034,1.2330127,2512.0,2511.9,35.95865]
[1749918939537,2.0288227,2512.0,2511.9,35.95865]
[1749918939735,2.0288227,2512.0,2511.9,3.2078]
[1749918939929,2.0288227,2512.0,2511.9,28.3418]
[1749918940737,2.0288227,2512.0,2511.9,30.51995]
[1749918942335,1.2330127,2512.0,2511.9,30.51995]
[1749918942739,0.6735,2512.6,2512.0,1.98952]
[1749918943033,1.22311962,2512.5,2512.4,4.00347]
[1749918943232,1.22311962,2512.5,2512.4,29.11647]
[1749918946532,1.22311962,2512.5,2512.4,35.92147]
[1749918949056,1.22311962,2512.5,2512.4,35.89547]
[1749918950760,2.13021,2513.0,2512.9,0.79553]
[1749918950959,2.53804892,2513.0,2512.9,0.79553]
[1749918951252,1.20334892,2513.0,2512.9,0.79553]
[1749918951456,0.42048065,2513.0,2512.9,8.91983]
[1749918951653,0.00395494,2513.1,2513.0,0.7955]
[1749918951855,0.00395494,2513.1,2513.0,5.3026]
[1749918952055,0.00395494,2513.1,2513.0,37.1806]
[1749918953253,0.00395494,2513.1,2513.0,5.3026]
[1749918953460,0.00395494,2513.1,2513.0,37.1756]
[1749918954558,0.00395494,2513.1,2513.0,77.9756]
[1749918955353,0.00395494,2513.1,2513.0,46.1026]
[1749918955554,0.79545,2513.2,2513.0,77.8766]
[1749918955760,3.2078,2514.3,2513.2,1.98859]
[1749918955963,0.6537,2514.1,2513.8,0.79523]
[1749918956158,0.79519,2514.0,2513.9,25.178]
[1749918956362,1.44887,2514.1,2513.9,25.178]
[1749918956558,1.44887,2514.1,2513.9,25.9732]
[1749918956759,1.44887,2514.1,2513.9,25.178]
[1749918956961,0.6537,2514.1,2513.9,25.97321]
[1749918957260,0.6537,2514.1,2514.0,0.79518]
[1749918957463,0.6537,2514.1,2514.0,2.13728]
[1749918959470,0.6537,2514.1,2514.0,1.3421]
[1749918959765,0.6537,2514.1,2514.0,2.13728]
[1749918960464,0.6605,2514.2,2514.1,0.79515]
[1749918960660,0.6605,2514.2,2514.1,25.94415]
[1749918961165,0.00597443,2514.3,2514.2,0.79512]
[1749918961366,0.00597443,2514.3,2514.2,2.09932]
[1749918963771,0.00597443,2514.3,2514.2,7.09932]
[1749918964167,0.06809268,2514.5,2514.4,0.79505]
[1749918964368,0.06809268,2514.5,2514.4,29.12385]
[1749918964568,0.79489,2515.0,2514.8,0.7949]
[1749918964763,0.79489,2515.0,2514.9,0.7949]
[1749918964968,0.7949,2514.9,2514.8,25.9099]
[1749918965469,0.7949,2514.9,2514.8,25.115]
[1749918965666,0.79502,2514.5,2514.4,28.3158]
[1749918965866,0.795,2514.6,2514.2,31.822]
[1749918966062,6.713,2515.0,2514.6,0.79498]
[1749918966265,0.79496,2514.7,2514.6,0.79498]
[1749918966465,0.79502,2514.5,2514.4,25.122]
[1749918967072,0.79505,2514.4,2514.3,42.88819]
[1749918967266,0.79505,2514.4,2514.3,68.00919]
[1749918967465,0.79505,2514.4,2514.3,40.8]
[1749918967664,0.79512,2514.2,2514.1,0.79514]
[1749918967866,0.79512,2514.2,2514.1,25.92015]
[1749918968774,0.79515,2514.1,2514.0,12.00907]
[1749918968975,0.79513,2514.2,2514.1,0.79513]
[1749918969178,0.79515,2514.1,2514.0,35.83896]
[1749918969371,1.3769,2514.4,2514.0,35.0438]
[1749918969578,0.79515,2514.1,2514.0,3.2078]
[1749918969882,0.79515,2514.1,2514.0,29.11798]
[1749918970379,0.79515,2514.1,2514.0,28.3228]
[1749918970976,3.2078,2514.3,2513.7,40.80597443]
[1749918971181,0.79524,2513.8,2513.7,0.00597443]
[1749918971478,6.713,2513.9,2513.2,3.2078]
[1749918971679,0.79548,2513.1,2513.0,0.79549]
[1749918971881,0.7955,2513.0,2512.8,4.5262]
[1749918972077,0.7955,2513.0,2512.9,25.90753]
[1749918972279,0.7955,2513.0,2512.8,5.32174]
[1749918972481,0.7955,2513.0,2512.9,25.112]
[1749918972681,0.7955,2513.0,2512.9,25.90753]
[1749918972979,0.79548,2513.1,2513.0,0.79549]
[1749918973183,0.00597443,2513.2,2513.0,0.7955]
[1749918973384,0.79547,2513.1,2513.0,0.7955]
[1749918973583,0.00597443,2513.2,2512.9,0.79551]
[1749918973584,0.7955,2513.0,2512.9,0.79551]
[1749918973881,0.00597443,2513.2,2512.9,25.103]
[1749918974187,0.7955,2513.0,2512.9,25.8985]
[1749918974378,0.7955,2513.0,2512.9,25.89853]
[1749918975085,0.7955,2513.0,2512.9,25.103]
[1749918975380,0.7955,2513.0,2512.9,0.79553]
[1749918975581,0.79553,2512.9,2512.8,28.2978]
[1749918976083,0.79553,2512.9,2512.8,29.09335]
[1749918976479,0.79553,2512.9,2512.8,29.09336]
[1749918976792,0.79553,2512.9,2512.8,3.2078]
[1749918978083,0.79559,2512.7,2512.6,25.88857443]
[1749918978290,0.79559,2512.7,2512.6,0.00597443]
[1749918978584,0.79559,2512.7,2512.6,25.08697443]
[1749918979388,0.79558,2512.8,2512.7,0.79558]
[1749918979687,0.79559,2512.8,2512.7,0.79559]
[1749918983088,3.2078,2513.0,2512.6,25.08697443]
[1749918983089,0.79559,2512.7,2512.6,0.00597443]
[1749918983283,1.47919,2512.7,2512.6,0.00597443]
[1749918984785,0.6836,2512.7,2512.6,0.80159443]
[1749918985088,1.47919,2512.7,2512.6,0.00597443]
[1749918985290,1.47919,2512.7,2512.6,0.80159443]
[1749918985586,1.47919,2512.7,2512.6,0.00597443]
[1749918986289,1.47919,2512.7,2512.6,0.80159443]
[1749918988383,0.6836,2512.7,2512.6,0.80159443]
[1749918988585,1.47919,2512.7,2512.6,0.80159443]
[1749918990294,1.47919,2512.7,2512.6,0.00597443]
[1749918990797,2.85039,2512.7,2512.6,0.00597443]
[1749918992289,1.47919,2512.7,2512.6,0.00597443]
[1749918993791,0.79575,2512.2,2512.1,3.2078]
[1749918994198,0.79575,2512.2,2512.1,4.00358]
[1749918994396,0.79573,2512.3,2512.2,0.79571]
[1749918994695,0.79573,2512.3,2512.2,2.05151]
[1749918994897,0.79573,2512.3,2512.2,1.2558]
[1749918995091,0.79575,2512.2,2512.1,3.2078]
[1749918996006,0.79578,2512.1,2512.0,0.00597443]
[1749918996200,1.42568,2512.1,2512.0,0.00597443]
[1749919000694,2.58485913,2512.1,2512.0,0.00597443]
[1749919002899,0.796,2511.4,2511.3,0.6499]
[1749919004307,0.79607,2511.2,2511.1,3.21377443]
[1749919005301,0.79607,2511.2,2511.1,4.57537443]
[1749919006204,0.79607,2511.2,2511.1,5.37147443]
[1749919006395,0.79607,2511.2,2511.1,4.57537443]
[1749919007800,0.79607,2511.2,2511.1,1.36757443]
[1749919007995,0.79607,2511.2,2511.1,0.00597443]
[1749919008395,1.95343687,2511.2,2511.1,0.00597443]
[1749919008703,0.79607,2511.2,2511.1,0.00597443]
[1749919009206,1.95362902,2511.2,2511.1,0.00597443]
[1749919012604,3.2078,2511.3,2511.2,0.79607]
[1749919012998,4.00383,2511.3,2511.2,2.11237]
[1749919013198,4.00383,2511.3,2511.2,1.3163]
[1749919014505,0.79607,2511.2,2511.1,0.00597443]
[1749919015103,0.79607,2511.2,2511.1,1.32087443]
[1749919016511,1.95306397,2511.2,2511.1,0.00597443]
[1749919017400,0.79607,2511.2,2511.1,0.00597443]
[1749919017604,0.79607,2511.2,2511.1,1.28437443]
[1749919019509,0.79607,2511.2,2511.1,2.08047443]
[1749919019710,0.79607,2511.2,2511.1,1.28437443]
[1749919019911,0.79607,2511.2,2511.1,2.08047443]
[1749919020209,0.79607,2511.2,2511.1,1.28437443]
[1749919021406,1.95364068,2511.2,2511.1,1.28437443]
[1749919021909,0.79619,2510.9,2510.8,0.79618]
[1749919022105,0.79613,2511.1,2511.0,0.79611]
[1749919022299,3.2078,2511.3,2511.2,0.79607]
[1749919022511,4.36534576,2511.3,2511.2,0.79607]
[1749919023011,0.00597443,2511.6,2511.5,0.79597]
[1749919023303,0.80191443,2511.6,2511.5,0.79597]
[1749919023515,0.80191443,2511.6,2511.5,5.79597]
[1749919024104,0.00597443,2511.6,2511.5,5.79597]
[1749919024899,0.00597443,2511.6,2511.5,9.00377]
[1749919025103,4.00359,2512.1,2511.5,8.2078]
[1749919025306,1.15918589,2512.0,2511.6,8.578]
[1749919025510,3.2078,2512.1,2511.7,2.07539]
[1749919025711,0.79585,2511.9,2511.8,1.2795]
[1749919025914,0.79585,2511.9,2511.8,2.07538]
[1749919026107,0.79585,2511.9,2511.8,1.2795]
[1749919029105,0.79604,2511.3,2511.2,3.2078]
[1749919029309,0.79604,2511.3,2511.2,4.5424]
[1749919030012,0.79604,2511.3,2511.2,5.33847]
[1749919030508,0.79603,2511.4,2511.3,0.796]
[1749919030709,0.79603,2511.4,2511.3,2.1375]
[1749919031316,0.796,2511.4,2511.3,2.82832]
[1749919031511,0.796,2511.4,2511.3,3.51902]
[1749919031912,0.79598,2511.5,2511.4,0.79597]
[1749919032113,0.79596,2511.6,2511.5,0.79596]
[1749919032616,0.79588,2511.9,2511.8,0.79586]
[1749919032818,0.7959,2511.8,2511.7,0.79589]
[1749919033414,0.00597443,2512.1,2511.7,0.79589]
[1749919033415,0.00597443,2512.1,2512.0,0.79581]
[1749919034916,0.80175443,2512.1,2512.0,0.79581]
[1749919035316,0.00597443,2512.1,2512.0,0.79581]
[1749919038619,0.80177443,2512.1,2512.0,0.79581]
[1749919039321,0.79585,2511.9,2511.8,3.2078]
[1749919039520,0.79588,2511.8,2511.7,0.7959]
[1749919039821,0.79594,2511.6,2511.5,7.40295]
[1749919040019,0.7959,2511.8,2511.7,0.7959]
[1749919040618,0.79592,2511.7,2511.6,0.79592]
[1749919041216,0.79594,2511.7,2511.5,6.607]
[1749919041420,0.79594,2511.7,2511.6,0.79593]
[1749919041617,0.79594,2511.6,2511.5,6.607]
[1749919041813,0.79597,2511.5,2511.4,3.2078]
[1749919042013,0.79603,2511.4,2511.3,0.79603]
[1749919042414,0.79604,2511.3,2511.2,6.607]
[1749919042615,0.79607,2511.2,2511.1,3.2078]
[1749919042814,1.98999,2511.5,2511.0,0.00597443]
[1749919042815,0.7961,2511.1,2511.0,0.00597443]
[1749919043625,0.7961,2511.1,2511.0,0.80210443]
[1749919043923,0.7961,2511.1,2511.0,0.00597443]
[1749919045121,0.6353,2511.2,2511.0,0.00597443]
[1749919045416,2.63118,2511.5,2511.0,0.80209443]
[1749919045617,0.6744,2511.4,2511.0,0.80209443]
[1749919046011,0.79607,2511.2,2511.1,0.79608]
[1749919046414,0.6744,2511.4,2511.0,0.00597443]
[1749919046824,0.7961,2511.1,2511.0,0.80209443]
[1749919047024,0.6744,2511.4,2511.0,0.00597443]
[1749919047323,0.6744,2511.4,2511.3,0.79604]
[1749919047523,1.47043,2511.4,2511.3,0.79604]
[1749919048119,0.79605,2511.3,2511.2,0.79606]
[1749919048326,1.47042,2511.4,2511.3,0.79604]
[1749919048527,3.2078,2511.9,2511.1,1.338]
[1749919048829,1.3415,2512.0,2511.9,0.79585]
[1749919049434,2.13731,2512.0,2511.9,0.79585]
[1749919050732,0.79586,2511.9,2511.8,0.79586]
[1749919051331,2.13733,2512.0,2511.9,0.79584]
[1749919051534,0.79585,2511.9,2511.8,0.79585]
[1749919052137,2.13733,2512.0,2511.9,0.79585]
[1749919052433,0.00597443,2512.1,2512.0,0.79581]
[1749919054733,0.80175443,2512.1,2512.0,0.79581]
[1749919055237,0.00597443,2512.1,2512.0,0.79581]
[1749919056538,0.80175443,2512.1,2512.0,0.79581]
[1749919056833,0.00597443,2512.1,2512.0,0.79581]
[1749919057335,0.80175443,2512.1,2512.0,0.79581]
[1749919057936,0.00597443,2512.1,2512.0,0.79581]
[1749919059041,0.00597443,2512.1,2512.0,41.59581]
[1749919061444,0.00597443,2512.1,2512.0,40.8]
[1749919061445,0.80175443,2512.1,2512.0,40.8]
[1749919061737,0.80175443,2512.1,2512.0,0.79581]
[1749919064340,0.79581,2512.0,2511.9,25.59483]
[1749919064542,0.79585,2511.9,2511.8,44.80367]
[1749919064742,0.79585,2511.9,2511.8,4.00367]
[1749919065739,0.6388,2512.0,2511.8,3.2078]
[1749919065940,0.6388,2512.0,2511.9,0.79585]
[1749919066544,1.43461,2512.0,2511.9,0.79585]
[1749919067242,0.6388,2512.0,2511.9,0.79585]
[1749919067441,1.43461,2512.0,2511.9,0.79585]
[1749919068149,1.43461,2512.0,2511.9,2.12305]
[1749919068351,0.00597443,2512.1,2512.0,0.79581]
[1749919068548,0.80175443,2512.1,2512.0,2.12301]
[1749919069549,0.00597443,2512.1,2512.0,2.12301]
[1749919070548,0.80175443,2512.1,2512.0,2.12301]
[1749919071638,0.80175443,2512.1,2512.0,0.79581]
[1749919071838,0.00597443,2512.1,2512.0,0.79581]
[1749919072444,0.80175443,2512.1,2512.0,0.79581]
[1749919074051,0.00597443,2512.1,2512.0,0.79581]
[1749919076643,1.16827358,2512.1,2512.0,0.79581]
[1749919077044,2.36252968,2512.7,2512.4,0.79569]
[1749919077245,3.8614,2512.8,2512.7,0.79559]
[1749919077548,4.65696,2512.8,2512.7,0.79559]
[1749919078649,0.79562,2512.6,2512.5,0.00597443]
[1749919083648,0.79586,2511.9,2511.8,0.79585]
[1749919083845,5.19729,2512.1,2511.3,9.7758]
[1749919084047,0.79599,2511.5,2511.4,0.79598]
[1749919084352,3.8702,2511.8,2511.7,0.79591]
[1749919084557,0.6624,2511.8,2511.7,0.79591]
[1749919084954,1.45828,2511.8,2511.7,2.05211]
[1749919085150,1.45828,2511.8,2511.7,0.79591]
[1749919085854,0.79594,2511.6,2511.5,0.00597443]
[1749919086357,0.79594,2511.6,2511.5,0.80194443]
[1749919086657,0.79594,2511.6,2511.5,0.00597443]
[1749919088457,0.79594,2511.6,2511.5,0.80194443]
[1749919088656,0.79594,2511.6,2511.5,0.00597443]
[1749919088953,0.79594,2511.6,2511.5,1.37647443]
[1749919089150,1.95042583,2511.6,2511.5,1.37647443]
[1749919090456,1.4583,2511.8,2511.7,0.79591]
[1749919090755,0.79593,2511.7,2511.6,0.79592]
[1749919090964,1.94977652,2511.7,2511.6,0.79592]
[1749919091164,0.79594,2511.6,2511.5,2.17243443]
[1749919091459,0.79594,2511.6,2511.5,1.37647443]
[1749919092253,0.79594,2511.6,2511.5,0.00597443]
[1749919092457,1.94932234,2511.6,2511.5,0.00597443]
[1749919092657,1.94923332,2511.6,2511.5,0.00597443]
[1749919092858,0.79594,2511.6,2511.5,0.00597443]
[1749919093162,1.94923481,2511.6,2511.5,0.00597443]
[1749919093357,0.79594,2511.6,2511.5,0.00597443]
[1749919093660,0.79594,2511.6,2511.5,0.80194443]
[1749919093864,0.79594,2511.6,2511.5,0.00597443]
[1749919094056,0.79594,2511.6,2511.3,3.2078]
[1749919094057,0.7961,2511.1,2511.0,3.2078]
[1749919094453,0.7961,2511.1,2511.0,4.5604]
[1749919095258,0.7961,2511.1,2510.8,0.00597443]
[1749919095259,0.79616,2510.9,2510.8,0.00597443]
[1749919095455,0.79626,2510.6,2510.5,1.3526]
[1749919097273,0.79626,2510.6,2510.5,2.14889]
[1749919097561,0.79626,2510.6,2510.5,1.3526]
[1749919099457,0.79626,2510.6,2510.5,2.14889]
[1749919099657,0.79626,2510.6,2510.5,1.3526]
[1749919099961,0.79626,2510.6,2510.5,2.14889]
[1749919100159,2.12555,2511.0,2510.9,0.79616]
[1749919100358,0.79619,2510.8,2510.7,0.7962]
[1749919100562,0.79619,2510.8,2510.7,2.0894]
[1749919102067,0.79619,2510.8,2510.7,1.2932]
[1749919102664,0.79619,2510.8,2510.7,2.08943]
[1749919102870,0.79619,2510.8,2510.7,1.2932]
[1749919104265,0.79619,2510.8,2510.7,2.08943]
[1749919104565,3.2078,2511.3,2510.7,4.501]
[1749919104778,9.7788,2511.9,2511.1,1.99025]
[1749919104966,11.1268,2511.9,2511.3,5.19787]
[1749919105270,0.79592,2511.7,2511.6,0.79592]
[1749919105469,0.79597,2511.5,2511.4,43.57979]
[1749919105668,0.79596,2511.6,2511.5,0.79597]
[1749919105863,0.79596,2511.6,2511.5,2.12437]
[1749919106865,0.79593,2511.7,2511.6,0.79593]
[1749919107364,0.79594,2511.6,2511.5,2.12435]
[1749919108672,0.7959,2511.8,2511.7,0.7959]
[1749919109070,0.68737443,2512.0,2511.6,3.2078]
[1749919109274,0.79589,2511.8,2511.7,2.13039]
[1749919109567,0.79594,2511.6,2511.5,0.00597443]
[1749919110372,0.7961,2511.1,2511.0,6.568]
[1749919110664,0.79613,2511.0,2510.9,3.2078]
[1749919111174,0.79613,2511.0,2510.9,4.5423]
[1749919113068,0.79613,2511.0,2510.9,5.33846]
[1749919113765,0.79613,2511.0,2510.9,4.5423]
[1749919114478,0.6649,2511.5,2510.9,4.5423]
[1749919114668,0.79611,2511.1,2511.0,0.79612]
[1749919114970,0.79611,2511.1,2511.0,2.14442]
[1749919115176,0.79606,2511.3,2511.2,0.79606]
[1749919115378,0.79606,2511.3,2511.0,1.3483]
[1749919115379,0.79609,2511.2,2511.1,0.79609]
[1749919115775,0.79609,2511.2,2511.1,0.79608]
[1749919115971,1.3039,2511.5,2511.0,2.0159]
[1749919116276,4.5076,2511.9,2511.4,1.99002]
[1749919116578,0.79594,2511.6,2511.5,5.33376]
[1749919117469,0.79591,2511.7,2511.6,0.79591]
[1749919117667,0.79594,2511.6,2511.5,5.33374]
[1749919119376,0.79594,2511.6,2511.5,4.5378]
[1749919119574,0.79594,2511.6,2511.5,2.12597]
[1749919119778,0.79594,2511.6,2511.5,1.33]
[1749919120978,0.79594,2511.6,2511.5,2.12597]
[1749919123276,0.79594,2511.6,2511.5,2.12595]
[1749919123580,0.79599,2511.5,2511.4,0.79597]
[1749919124775,0.79595,2511.7,2511.6,0.79593]
[1749919125774,0.79594,2511.6,2511.5,3.2078]
[1749919126179,0.79593,2511.7,2511.6,0.79591]
[1749919126476,0.79591,2511.7,2511.6,2.11153]
[1749919127685,1.2998,2511.9,2511.6,1.3156]
[1749919127973,0.79594,2511.6,2511.5,3.2078]
[1749919128380,0.796,2511.4,2511.3,25.58801]
[1749919128777,0.796,2511.4,2511.3,26.90641]
[1749919129679,0.79609,2511.2,2511.0,0.6929]
[1749919129978,0.79609,2511.2,2511.1,0.79607]
[1749919130178,0.79606,2511.3,2511.2,0.79605]
[1749919131477,1.48081,2511.4,2511.3,0.79604]
[1749919131777,3.95769,2511.9,2511.0,26.1094]
[1749919131778,7.206,2511.9,2511.5,0.79594]
[1749919131982,0.79594,2511.6,2511.5,0.79594]
[1749919132585,0.79598,2511.5,2511.4,0.79598]
[1749919132777,0.796,2511.4,2511.3,2.15863]
[1749919132978,0.796,2511.4,2511.3,1.3626]
[1749919133286,3.2078,2511.6,2511.0,6.567]
[1749919133582,0.7961,2511.1,2511.0,32.6185]
[1749919133780,0.7961,2511.1,2511.0,33.41463]
[1749919133981,0.7961,2511.1,2511.0,32.6185]
[1749919134571,0.7961,2511.1,2511.0,7.8275]
[1749919135181,0.7961,2511.1,2511.0,8.62363]
[1749919135384,0.7961,2511.1,2511.0,8.62361]
[1749919135974,0.79609,2511.2,2511.1,0.79608]
[1749919136586,0.7961,2511.1,2511.0,8.62361]
[1749919137381,0.7961,2511.1,2511.0,7.8275]
[1749919137782,0.7961,2511.1,2511.0,8.62363]
[1749919138087,1.3606,2511.3,2511.0,7.8275]
[1749919138380,1.3606,2511.3,2511.2,0.79607]
[1749919138583,0.6941,2511.3,2511.2,0.79607]
[1749919138887,0.79602,2511.4,2511.3,0.79604]
[1749919139388,0.79606,2511.3,2511.2,0.79605]
[1749919140284,0.7961,2511.2,2511.1,0.79609]
[1749919140488,0.7961,2511.1,2511.0,7.36313]
[1749919140783,0.7961,2511.1,2511.0,6.567]
[1749919141288,0.7961,2511.1,2511.0,7.36313]
[1749919141487,1.99011,2511.3,2510.9,27.9988]
[1749919141488,0.79613,2511.0,2510.9,3.2078]
[1749919141686,0.79613,2511.0,2510.9,4.00396]
[1749919142082,0.79613,2511.0,2510.9,5.31506]
[1749919142280,0.79619,2510.8,2510.7,0.00398293]
[1749919142688,1.9497082,2510.8,2510.7,0.00398293]
[1749919143191,0.79626,2510.6,2510.5,3.2078]
[1749919143389,1.9497782,2510.6,2510.5,3.2078]
[1749919145391,0.79626,2510.6,2510.5,3.2078]
[1749919148090,0.79635,2510.3,2510.2,4.00416]
[1749919148894,0.00597443,2510.5,2510.2,3.2078]
[1749919149193,0.00597443,2510.5,2510.4,0.79632]
[1749919149393,0.79634,2510.4,2510.3,0.79633]
[1749919149694,0.79634,2510.4,2510.3,25.59033]
[1749919149993,0.80229443,2510.5,2510.4,0.79632]
[1749919150189,0.79632,2510.4,2510.3,25.59032]
[1749919150493,0.80228443,2510.5,2510.4,0.79632]
[1749919152095,0.79635,2510.3,2510.2,10.4107]
[1749919152390,0.79635,2510.3,2510.2,3.2078]
[1749919152988,1.44645,2510.3,2510.2,3.2078]
[1749919153592,1.44645,2510.3,2510.2,4.00418]
[1749919153796,0.79638,2510.2,2510.1,0.7964]
[1749919154091,1.44646,2510.3,2510.2,0.79638]
[1749919154489,0.79644,2510.1,2510.0,0.79642]
[1749919155094,0.79639,2510.2,2510.1,0.79638]
[1749919155293,1.44647,2510.3,2510.2,0.79638]
[1749919155488,0.79641,2510.2,2510.1,0.7964]
[1749919156093,0.6328,2510.4,2509.9,28.0008]
[1749919156292,0.79645,2510.0,2509.9,3.2078]
[1749919156499,2.62801,2510.3,2509.6,3.2078]
[1749919156500,0.79654,2509.7,2509.6,3.2078]
[1749919157299,1.99144,2509.6,2509.3,3.2078]
[1749919157491,0.79673,2509.1,2509.0,3.2078]
[1749919157902,0.79672,2509.2,2509.1,0.79672]
[1749919158098,0.79673,2509.1,2509.0,3.2078]
[1749919158995,3.8397,2509.4,2509.2,0.7967]
[1749919159199,0.6319,2509.4,2509.0,3.2078]
[1749919159391,0.79673,2509.1,2509.0,3.2078]
[1749919160194,0.6319,2509.4,2509.0,3.2078]
[1749919160396,0.79669,2509.3,2509.1,0.79673]
[1749919160592,0.6319,2509.4,2509.0,3.2078]
[1749919160792,0.79673,2509.1,2509.0,3.2078]
[1749919161999,0.79683,2508.8,2508.7,6.566]
[1749919162200,0.00597443,2509.0,2508.6,4.00467]
[1749919162403,0.79686,2508.7,2508.6,3.2078]
[1749919162603,1.3221,2508.9,2508.6,4.00468]
[1749919163010,0.79686,2508.7,2508.6,3.2078]
[1749919163309,2.11892,2508.9,2508.8,0.79683]
[1749919163507,0.7968,2508.9,2508.8,0.79683]
[1749919163708,0.79686,2508.8,2508.7,0.79684]
[1749919164312,0.79686,2508.7,2508.6,4.00468]
[1749919164714,0.7968,2508.9,2508.6,3.2078]
[1749919164910,0.00597443,2509.0,2508.8,0.79682]
[1749919165115,0.00597443,2509.0,2508.6,3.2078]
[1749919165519,0.79686,2508.8,2508.7,0.79684]
[1749919166416,0.00597443,2509.0,2508.6,3.2078]
[1749919166616,0.79681,2508.9,2508.8,0.7968]
[1749919167014,0.79684,2508.8,2508.7,0.79684]
[1749919167318,0.79686,2508.7,2508.6,4.00467]
[1749919168221,0.79685,2508.8,2508.7,0.79684]
[1749919168520,0.79685,2508.8,2508.7,2.08204]
[1749919168823,0.79682,2508.9,2508.8,0.79681]
[1749919169319,0.80276443,2509.0,2508.9,0.7968]
[1749919169516,0.79682,2508.9,2508.8,0.79681]
[1749919169711,0.79682,2508.9,2508.8,0.7968]
[1749919169915,0.00597443,2509.0,2508.9,0.7968]
[1749919170116,0.80274443,2509.0,2508.9,0.7968]